fUST/lending_fUST_20241102
["ID","MTS","AMOUNT","RATE_DAILY","PERIOD"]
[341156238,1730483438356,-314.87278795,0.00033158,4]
[341156240,1730483438366,-500.0,0.00033158,4]
[341156242,1730483438375,-200.0,0.00033158,4]
[341156244,1730483438384,-500.0,0.00033158,4]
[341156246,1730483438393,-503.57431409,0.00033158,4]
[341156248,1730483438403,-202.8998093,0.00033158,4]
[341156289,1730483439427,-297.1001907,0.00033158,4]
[341156290,1730483439437,-500.0,0.00033158,4]
[341156291,1730483439446,-500.0,0.00033158,4]
[341156292,1730483439455,-500.0,0.00033158,4]
[341156293,1730483439464,-500.0,0.00033158,4]
[341156294,1730483439474,-500.0,0.00033158,4]
[341156295,1730483439483,-500.0,0.00033158,4]
[341156296,1730483439493,-500.0,0.00033158,4]
[341156297,1730483439503,-500.0,0.00033158,4]
[341156298,1730483439513,-500.0,0.00033158,4]
[341156299,1730483439522,-500.0,0.00033158,4]
[341156300,1730483439532,-635.49030546,0.00033158,4]
[341156301,1730483439543,-500.0,0.00033158,4]
[341156302,1730483439555,-2393.13,0.00033158,4]
[341156303,1730483439564,-500.0,0.00033158,4]
[341156304,1730483439573,-78.98161738,0.00033158,4]
[341156305,1730483439589,-421.01838262,0.00033158,4]
[341156306,1730483439599,-500.0,0.00033158,4]
[341156307,1730483439608,-175.46774613,0.00033158,4]
[341156308,1730483439617,-500.0,0.00033158,4]
[341156309,1730483439626,-500.0,0.00033158,4]
[341156310,1730483439636,-500.0,0.00033158,4]
[341156311,1730483439645,-500.0,0.00033158,4]
[341156312,1730483439656,-500.0,0.00033158,4]
[341156313,1730483439666,-11189.26,0.00033158,4]
[341156314,1730483439676,-500.0,0.00033158,4]
[341156315,1730483439686,-437.25711345,0.00033158,4]
[341156316,1730483439695,-500.0,0.00033158,4]
[341156317,1730483439705,-505.87300903,0.00033158,4]
[341156318,1730483439715,-501.43252782,0.00033158,4]
[341156320,1730483439724,-504.35421635,0.00033158,4]
[341156321,1730483439734,-500.0,0.00033158,4]
[341156322,1730483439745,-500.0,0.00033158,4]
[341156323,1730483439755,-500.0,0.00033158,4]
[341156324,1730483439764,-500.0,0.00033158,4]
[341156325,1730483439773,-385.62541215,0.00033158,4]
[341156326,1730483439782,-500.0,0.00033158,4]
[341156327,1730483439791,-500.0,0.00033158,4]
[341156328,1730483439802,-500.0,0.00033158,4]
[341156329,1730483439811,-500.0,0.00033158,4]
[341156330,1730483439821,-500.0,0.00033158,4]
[341156331,1730483439832,-2485.18,0.00033158,4]
[341156332,1730483439842,-500.0,0.00033158,4]
[341156334,1730483439851,-500.0,0.00033158,4]
[341156336,1730483439861,-1831.55,0.00033158,4]
[341156337,1730483439872,-501.36729741,0.00033158,4]
[341156340,1730483439881,-500.0,0.00033158,4]
[341156342,1730483439890,-500.0,0.00033158,4]
[341156344,1730483439901,-896.7,0.00033158,4]
[341156345,1730483439912,-500.0,0.00033158,4]
[341156346,1730483439921,-500.0,0.00033158,4]
[341156347,1730483439930,-500.0,0.00033158,4]
[341156348,1730483439941,-564.024283,0.00033158,4]
[341156349,1730483439950,-500.0,0.00033158,4]
[341156350,1730483439959,-500.0,0.00033158,4]
[341156351,1730483439969,-1604.13,0.00033158,4]
[341156352,1730483439978,-500.0,0.00033158,4]
[341156353,1730483439988,-500.0,0.00033158,4]
[341156354,1730483439997,-500.0,0.00033158,4]
[341156355,1730483440006,-500.0,0.00033158,4]
[341156356,1730483440017,-500.0,0.00033158,4]
[341156357,1730483440030,-500.0,0.00033158,4]
[341156358,1730483440041,-500.0,0.00033158,4]
[341156359,1730483440053,-500.0,0.00033158,4]
[341156360,1730483440063,-506.38480529,0.00033158,4]
[341156361,1730483440072,-458.02010632,0.00033158,4]
[341156362,1730483440082,-926.64,0.00033158,4]
[341156363,1730483440092,-500.0,0.00033158,4]
[341156364,1730483440101,-500.0,0.00033158,4]
[341156366,1730483440111,-222.41573537,0.00033158,7]
[341156368,1730483440120,-500.0,0.00033431,4]
[341156369,1730483440130,-974.99,0.00033431,4]
[341156370,1730483440140,-500.0,0.00033431,4]
[341156372,1730483440149,-500.0,0.00033431,4]
[341156374,1730483440159,-500.0,0.00033431,4]
[341156376,1730483440169,-11687.59,0.00033431,4]
[341156378,1730483440178,-500.0,0.00033431,4]
[341156380,1730483440188,-500.0,0.00033431,4]
[341156382,1730483440198,-500.0,0.00033431,4]
[341156384,1730483440208,-14553.09,0.00033431,3]
[341156386,1730483440218,-1467.81,0.00033431,4]
[341156388,1730483440228,-987.71,0.00033431,4]
[341156390,1730483440239,-500.0,0.00033431,4]
[341156392,1730483440248,-500.0,0.00033431,7]
[341156394,1730483440257,-501.22943104,0.00033431,7]
[341156396,1730483440267,-500.0,0.00033431,4]
[341156398,1730483440277,-500.0,0.00033432,4]
[341156400,1730483440286,-506.47646906,0.00033432,4]
[341156402,1730483440295,-500.0,0.00033432,4]
[341156403,1730483440305,-500.0,0.00033432,4]
[341156405,1730483440315,-500.0,0.00033432,4]
[341156407,1730483440324,-500.0,0.00033432,4]
[341156409,1730483440334,-500.0,0.00033432,4]
[341156411,1730483440344,-500.0,0.00033432,4]
[341156413,1730483440355,-500.0,0.00033432,4]
[341156414,1730483440364,-500.0,0.00033432,4]
[341156415,1730483440373,-500.0,0.00033432,4]
[341156416,1730483440382,-500.0,0.00033432,4]
[341156417,1730483440391,-500.0,0.00033432,4]
[341156418,1730483440401,-500.0,0.00033432,4]
[341156419,1730483440410,-500.0,0.00033432,4]
[341156420,1730483440420,-500.0,0.00033432,4]
[341156421,1730483440429,-500.0,0.00033432,4]
[341156422,1730483440438,-2393.13,0.00033432,4]
[341156423,1730483440448,-500.0,0.00033432,4]
[341156424,1730483440458,-501.31373715,0.00033432,4]
[341156425,1730483440468,-500.0,0.00033432,4]
[341156426,1730483440477,-500.0,0.00033432,4]
[341156427,1730483440486,-500.0,0.00033432,4]
[341156428,1730483440495,-500.0,0.00033432,4]
[341156429,1730483440504,-11189.26,0.00033432,4]
[341156430,1730483440513,-500.0,0.00033432,4]
[341156431,1730483440522,-502.29052032,0.00033432,4]
[341156432,1730483440531,-507.08045125,0.00033432,4]
[341156433,1730483440540,-500.0,0.00033432,4]
[341156434,1730483440551,-500.0,0.00033432,4]
[341156435,1730483440560,-500.0,0.00033432,4]
[341156436,1730483440570,-500.0,0.00033432,4]
[341156437,1730483440579,-500.0,0.00033432,4]
[341156438,1730483440588,-500.0,0.00033432,4]
[341156439,1730483440597,-2485.18,0.00033432,4]
[341156440,1730483440606,-500.0,0.00033432,4]
[341156441,1730483440615,-1831.55,0.00033432,4]
[341156442,1730483440624,-896.7,0.00033432,4]
[341156443,1730483440633,-319.84621729,0.00033432,4]
[341156444,1730483440642,-1604.13,0.00033432,4]
[341156445,1730483440651,-500.0,0.00033432,4]
[341156446,1730483440661,-500.0,0.00033432,4]
[341156447,1730483440670,-500.0,0.00033432,4]
[341156448,1730483440679,-500.0,0.00033432,4]
[341156449,1730483440689,-926.64,0.00033432,4]
[341156450,1730483440699,-508.97853094,0.00033432,4]
[341156451,1730483440708,-500.0,0.00033473,2]
[341156452,1730483440718,-500.0,0.00033473,5]
[341156453,1730483440728,-500.0,0.00033498,4]
[341156454,1730483440737,-500.0,0.00033498,4]
[341156455,1730483440747,-500.0,0.00033498,4]
[341156456,1730483440756,-500.0,0.00033498,4]
[341156457,1730483440765,-500.0,0.00033498,4]
[341156458,1730483440775,-502.18326778,0.00033498,4]
[341156459,1730483440785,-500.0,0.00033498,4]
[341156460,1730483440794,-501.51890291,0.00033498,4]
[341156461,1730483440804,-500.0,0.00033498,4]
[341156462,1730483440814,-500.0,0.00033498,4]
[341156463,1730483440823,-500.0,0.00033498,4]
[341156464,1730483440832,-500.0,0.00033498,4]
[341156465,1730483440841,-500.0,0.00033498,4]
[341156466,1730483440851,-4105.46,0.00033498,4]
[341156467,1730483440860,-810.46117485,0.00033498,4]
[341156468,1730483441023,-930.61882515,0.00033498,4]
[341156469,1730483441033,-500.0,0.00033498,4]
[341156470,1730483441045,-500.0,0.00033498,4]
[341156471,1730483441060,-500.0,0.00033498,4]
[341156472,1730483441070,-646.32625835,0.00033498,4]
[341156473,1730483441079,-1316.0,0.00033498,4]
[341156474,1730483441088,-500.0,0.00033498,4]
[341156475,1730483441098,-500.0,0.00033498,4]
[341156476,1730483441107,-150.90651641,0.00033498,30]
[341156477,1730483441116,-979.64,0.00033498,4]
[341156478,1730483441125,-867.06,0.00033498,4]
[341156479,1730483441135,-500.0,0.00033498,4]
[341156480,1730483441145,-500.0,0.00033498,4]
[341156481,1730483441154,-500.0,0.00033498,4]
[341156482,1730483441163,-501.40812782,0.00033498,4]
[341156483,1730483441173,-500.0,0.00033498,4]
[341156484,1730483441182,-500.0,0.00033498,4]
[341156485,1730483441191,-500.0,0.00033498,4]
[341156486,1730483441200,-500.0,0.00033498,4]
[341156487,1730483441209,-607.78,0.00033498,4]
[341156488,1730483441218,-494.61854112,0.00033498,4]
[341156489,1730483441228,-620.87035284,0.00033498,4]
[341156490,1730483441237,-500.0,0.00033498,4]
[341156491,1730483441247,-500.0,0.00033498,4]
[341156492,1730483441256,-510.10300907,0.00033498,4]
[341156493,1730483441266,-559.59895411,0.00033498,4]
[341156494,1730483441275,-500.0,0.00033498,4]
[341156495,1730483441284,-500.0,0.00033498,4]
[341156496,1730483441294,-500.0,0.00033498,4]
[341156497,1730483441305,-332.21603306,0.00033498,4]
[341156498,1730483441317,-500.0,0.00033498,4]
[341156499,1730483441327,-164.97177053,0.00033498,4]
[341156500,1730483441336,-500.0,0.00033498,4]
[341156501,1730483441347,-567.57976511,0.00033498,4]
[341156502,1730483441356,-502.83898147,0.00033498,4]
[341156503,1730483441366,-500.0,0.00033498,4]
[341156504,1730483441375,-500.0,0.00033498,4]
[341156505,1730483441385,-500.0,0.00033498,4]
[341156506,1730483441396,-500.0,0.00033498,4]
[341156507,1730483441405,-500.0,0.00033498,4]
[341156508,1730483441415,-500.0,0.00033498,4]
[341156509,1730483441425,-500.0,0.00033498,4]
[341156510,1730483441434,-500.0,0.00033498,4]
[341156511,1730483441444,-560.85,0.00033498,4]
[341156512,1730483441453,-537.37210004,0.00033498,4]
[341156513,1730483441463,-500.0,0.00033498,4]
[341156514,1730483441473,-500.0,0.00033498,4]
[341156515,1730483441482,-300.0,0.00033498,4]
[341156516,1730483441491,-500.0,0.00033498,4]
[341156517,1730483441500,-584.29083743,0.00033498,4]
[341156518,1730483441515,-500.0,0.00033498,4]
[341156519,1730483441526,-500.0,0.00033498,4]
[341156520,1730483441536,-569.23946109,0.00033498,4]
[341156521,1730483441548,-502.08709884,0.00033498,4]
[341156522,1730483441558,-500.0,0.00033498,4]
[341156523,1730483441567,-521.56043879,0.00033498,4]
[341156524,1730483441577,-500.0,0.00033498,4]
[341156525,1730483441587,-500.0,0.00033498,4]
[341156526,1730483441596,-500.0,0.00033498,4]
[341156527,1730483441605,-500.0,0.00033498,4]
[341156528,1730483441615,-500.0,0.00033498,4]
[341156529,1730483441624,-500.0,0.00033498,4]
[341156530,1730483441634,-506.04564712,0.00033498,4]
[341156531,1730483441644,-222.74670285,0.00033498,4]
[341156532,1730483441653,-526.04404867,0.00033498,4]
[341156533,1730483441663,-507.7803169,0.00033498,4]
[341156534,1730483441674,-200.0,0.00033498,4]
[341156535,1730483441684,-548.73369716,0.00033498,4]
[341156536,1730483441694,-500.0,0.00033498,4]
[341156537,1730483441706,-503.97702973,0.00033498,4]
[341156538,1730483441718,-505.73064462,0.00033498,4]
[341156539,1730483441729,-500.0,0.00033498,4]
[341156540,1730483441740,-500.0,0.00033498,4]
[341156541,1730483441750,-503.29827773,0.00033498,4]
[341156542,1730483441759,-293.87,0.00033498,4]
[341156543,1730483441768,-500.0,0.00033498,4]
[341156544,1730483441778,-500.0,0.00033498,4]
[341156545,1730483441789,-500.0,0.00033498,4]
[341156546,1730483441800,-500.0,0.00033498,2]
[341156547,1730483441810,-503.70185503,0.00033498,4]
[341156548,1730483441819,-507.94681623,0.00033498,4]
[341156549,1730483441829,-500.0,0.00033705,4]
[341156550,1730483441840,-974.99,0.00033705,4]
[341156551,1730483441850,-500.0,0.00033705,4]
[341156552,1730483441860,-500.0,0.00033705,4]
[341156553,1730483441870,-500.0,0.00033705,4]
[341156554,1730483441879,-11687.59,0.00033705,4]
[341156555,1730483441889,-500.0,0.00033705,4]
[341156556,1730483441898,-500.0,0.00033705,4]
[341156557,1730483441908,-500.0,0.00033705,4]
[341156558,1730483441917,-14553.09,0.00033705,3]
[341156559,1730483441926,-1467.81,0.00033705,4]
[341156560,1730483441936,-987.71,0.00033705,4]
[341156561,1730483442057,-500.0,0.00033705,4]
[341156562,1730483442067,-500.0,0.00033706,4]
[341156563,1730483442076,-500.0,0.00033706,4]
[341156564,1730483442085,-500.0,0.00033706,4]
[341156565,1730483442095,-500.0,0.00033706,4]
[341156566,1730483442106,-500.0,0.00033706,4]
[341156567,1730483442117,-500.0,0.00033706,4]
[341156568,1730483442129,-500.0,0.00033706,4]
[341156569,1730483442140,-500.0,0.00033706,4]
[341156570,1730483442150,-500.0,0.00033706,4]
[341156571,1730483442159,-500.0,0.00033706,4]
[341156572,1730483442168,-500.0,0.00033706,4]
[341156573,1730483442177,-500.0,0.00033706,4]
[341156574,1730483442186,-500.0,0.00033706,4]
[341156575,1730483442195,-500.0,0.00033706,4]
[341156576,1730483442205,-592.5049558,0.00033706,4]
[341156577,1730483442214,-500.0,0.00033706,4]
[341156578,1730483442223,-2393.13,0.00033706,4]
[341156579,1730483442233,-500.0,0.00033706,4]
[341156580,1730483442242,-500.0,0.00033706,4]
[341156581,1730483442251,-500.0,0.00033706,4]
[341156582,1730483442260,-500.0,0.00033706,4]
[341156583,1730483442270,-500.0,0.00033706,4]
[341156584,1730483442279,-11189.26,0.00033706,4]
[341156585,1730483442288,-500.0,0.00033706,4]
[341156586,1730483442297,-500.0,0.00033706,4]
[341156587,1730483442306,-500.0,0.00033706,4]
[341156588,1730483442315,-500.0,0.00033706,4]
[341156589,1730483442324,-500.0,0.00033706,4]
[341156590,1730483442333,-500.0,0.00033706,4]
[341156591,1730483442343,-500.0,0.00033706,4]
[341156592,1730483442352,-2485.18,0.00033706,4]
[341156593,1730483442361,-500.0,0.00033706,4]
[341156594,1730483442370,-1831.55,0.00033706,4]
[341156595,1730483442390,-896.7,0.00033706,4]
[341156596,1730483442402,-1604.13,0.00033706,4]
[341156597,1730483442413,-500.0,0.00033706,4]
[341156598,1730483442423,-500.0,0.00033706,4]
[341156599,1730483442432,-500.0,0.00033706,4]
[341156600,1730483442444,-500.0,0.00033706,4]
[341156601,1730483442456,-926.64,0.00033706,4]
[341156602,1730483442466,-500.0,0.00033771,4]
[341156603,1730483442476,-500.0,0.00033771,4]
[341156604,1730483442487,-500.0,0.00033771,4]
[341156605,1730483442496,-500.0,0.00033771,4]
[341156606,1730483442506,-500.0,0.00033771,4]
[341156607,1730483442516,-500.0,0.00033771,4]
[341156608,1730483442526,-500.0,0.00033771,4]
[341156609,1730483442535,-500.0,0.00033771,4]
[341156610,1730483442546,-500.0,0.00033771,4]
[341156611,1730483442556,-500.0,0.00033771,4]
[341156612,1730483442566,-500.0,0.00033771,4]
[341156613,1730483442577,-500.0,0.00033771,4]
[341156614,1730483442587,-500.0,0.00033771,4]
[341156615,1730483442599,-500.0,0.00033771,4]
[341156616,1730483442611,-500.0,0.00033771,4]
[341156617,1730483442622,-509.18,0.00033771,4]
[341156618,1730483442632,-500.0,0.00033771,4]
[341156619,1730483442641,-500.0,0.00033771,4]
[341156620,1730483442650,-500.0,0.00033771,4]
[341156621,1730483442660,-500.0,0.00033771,4]
[341156622,1730483442670,-500.0,0.00033771,4]
[341156623,1730483442680,-503.02914835,0.00033771,4]
[341156624,1730483442691,-500.0,0.00033771,2]
[341156625,1730483442700,-500.0,0.00033771,4]
[341156626,1730483442710,-500.0,0.00033771,4]
[341156627,1730483442721,-543.75677174,0.00033771,4]
[341156628,1730483442731,-500.0,0.00033771,4]
[341156629,1730483442741,-500.0,0.00033771,4]
[341156630,1730483442752,-500.0,0.00033771,4]
[341156631,1730483442762,-1658.97,0.00033771,120]
[341156632,1730483442771,-1660.59,0.00033771,4]
[341156633,1730483442781,-500.0,0.00033771,4]
[341156634,1730483442791,-500.0,0.00033771,4]
[341156635,1730483442807,-500.0,0.00033771,4]
[341156636,1730483442819,-500.0,0.00033771,4]
[341156637,1730483442829,-500.0,0.00033771,4]
[341156638,1730483442841,-500.0,0.00033771,4]
[341156639,1730483442850,-500.0,0.00033771,4]
[341156640,1730483442859,-500.0,0.00033771,4]
[341156641,1730483442869,-500.0,0.00033771,4]
[341156642,1730483442878,-984.70064036,0.00033771,4]
[341156643,1730483442887,-500.0,0.00033771,4]
[341156644,1730483442896,-500.0,0.00033771,4]
[341156645,1730483442906,-500.0,0.00033771,4]
[341156646,1730483442916,-500.0,0.00033771,4]
[341156647,1730483442927,-500.0,0.00033771,4]
[341156648,1730483442939,-206.53190926,0.00033771,4]
[341156649,1730483442949,-500.0,0.00033771,4]
[341156650,1730483442961,-500.0,0.00033771,4]
[341156651,1730483442970,-500.0,0.00033771,4]
[341156652,1730483442980,-500.0,0.00033771,4]
[341156653,1730483442990,-500.0,0.00033771,4]
[341156654,1730483443004,-500.0,0.00033771,4]
[341156655,1730483443013,-503.9571007,0.00033771,4]
[341156656,1730483443025,-586.00331074,0.00033771,4]
[341156657,1730483443035,-265.29319565,0.00033771,4]
[341156658,1730483443046,-515.44441386,0.00033771,4]
[341156659,1730483443055,-507.83377196,0.00033771,4]
[341156660,1730483443065,-503.52381167,0.00033771,4]
[341156661,1730483443076,-500.0,0.00033771,4]
[341156662,1730483443088,-503.3835725,0.00033771,4]
[341156663,1730483443101,-500.0,0.00033771,4]
[341156664,1730483443112,-1186.02,0.00033771,4]
[341156665,1730483443121,-500.0,0.00033771,4]
[341156666,1730483443131,-504.25670394,0.00033771,4]
[341156667,1730483443140,-500.0,0.00033771,4]
[341156668,1730483443150,-500.0,0.00033771,4]
[341156669,1730483443159,-500.0,0.00033771,4]
[341156670,1730483443169,-515.95807273,0.00033771,4]
[341156671,1730483443179,-500.0,0.00033771,4]
[341156672,1730483443189,-500.0,0.00033771,4]
[341156673,1730483443200,-500.0,0.00033771,4]
[341156674,1730483443211,-500.0,0.00033771,4]
[341156675,1730483443223,-500.0,0.00033771,4]
[341156676,1730483443233,-500.0,0.00033771,4]
[341156677,1730483443244,-500.0,0.00033771,4]
[341156678,1730483443254,-500.0,0.00033771,4]
[341156679,1730483443263,-500.0,0.00033771,4]
[341156680,1730483443273,-500.0,0.00033771,4]
[341156681,1730483443283,-500.0,0.00033771,4]
[341156682,1730483443292,-500.0,0.00033771,4]
[341156683,1730483443303,-500.0,0.00033771,4]
[341156684,1730483443312,-500.0,0.00033771,4]
[341156685,1730483443322,-500.0,0.00033771,4]
[341156686,1730483443331,-500.0,0.00033771,4]
[341156687,1730483443341,-500.0,0.00033771,4]
[341156688,1730483443350,-505.49586885,0.00033771,4]
[341156689,1730483443359,-500.0,0.00033771,4]
[341156690,1730483443369,-518.18796974,0.00033771,4]
[341156691,1730483443378,-500.0,0.00033771,4]
[341156692,1730483443388,-500.0,0.00033771,4]
[341156693,1730483443398,-500.0,0.00033772,4]
[341156694,1730483443407,-500.0,0.00033772,4]
[341156695,1730483443417,-500.0,0.00033772,4]
[341156696,1730483443426,-500.0,0.00033772,4]
[341156697,1730483443435,-500.0,0.00033772,4]
[341156698,1730483443446,-500.0,0.00033772,4]
[341156699,1730483443459,-500.0,0.00033772,4]
[341156700,1730483443469,-500.0,0.00033772,4]
[341156701,1730483443479,-4105.46,0.00033772,4]
[341156702,1730483443489,-1741.08,0.00033772,4]
[341156703,1730483443499,-500.0,0.00033772,4]
[341156704,1730483443509,-500.0,0.00033772,4]
[341156705,1730483443519,-500.0,0.00033772,4]
[341156706,1730483443528,-1316.0,0.00033772,4]
[341156707,1730483443538,-500.0,0.00033772,4]
[341156708,1730483443551,-500.0,0.00033772,4]
[341156709,1730483443560,-979.64,0.00033772,4]
[341156710,1730483443569,-867.06,0.00033772,4]
[341156711,1730483443581,-500.0,0.00033772,4]
[341156712,1730483443590,-500.0,0.00033772,4]
[341156713,1730483443600,-500.0,0.00033772,4]
[341156714,1730483443610,-500.0,0.00033772,4]
[341156715,1730483443620,-500.0,0.00033772,4]
[341156716,1730483443630,-500.0,0.00033772,4]
[341156717,1730483443639,-500.0,0.00033772,4]
[341156718,1730483443649,-500.0,0.00033772,4]
[341156719,1730483443659,-554.4962702,0.00033772,4]
[341156720,1730483443668,-506.56726671,0.00033772,4]
[341156721,1730483443677,-500.0,0.00033772,4]
[341156722,1730483443688,-500.0,0.00033772,4]
[341156723,1730483443698,-560.85,0.00033772,4]
[341156724,1730483443707,-500.0,0.00033772,4]
[341156725,1730483443717,-500.0,0.00033772,4]
[341156726,1730483443727,-500.0,0.00033772,4]
[341156727,1730483443737,-500.0,0.00033772,4]
[341156728,1730483443746,-502.81350965,0.00033772,4]
[341156729,1730483443756,-500.0,0.00033772,4]
[341156730,1730483443765,-500.0,0.00033772,4]
[341156731,1730483443775,-500.0,0.00033772,4]
[341156732,1730483443785,-500.0,0.00033772,4]
[341156733,1730483443795,-506.78733619,0.00033772,4]
[341156734,1730483443805,-515.23136101,0.00033772,4]
[341156735,1730483443815,-500.0,0.00033772,4]
[341156736,1730483443824,-500.0,0.00033772,4]
[341156737,1730483443834,-500.0,0.00033772,2]
[341156738,1730483443844,-500.94750852,0.00033773,5]
[341156739,1730483443854,-500.0,0.00033773,5]
[341156740,1730483443863,-500.92411913,0.00033773,5]
[341156741,1730483443873,-500.0,0.00033773,5]
[341156742,1730483443883,-339.8461461,0.00033773,5]
[341156743,1730483443893,-500.0,0.00033773,5]
[341156744,1730483443903,-500.0,0.00033773,5]
[341156745,1730483443912,-500.0,0.00033979,4]
[341156746,1730483443923,-974.99,0.00033979,4]
[341156747,1730483443933,-500.0,0.00033979,4]
[341156748,1730483443943,-500.0,0.00033979,4]
[341156749,1730483443953,-500.0,0.00033979,4]
[341156750,1730483443964,-11687.59,0.00033979,4]
[341156751,1730483443974,-500.0,0.00033979,4]
[341156752,1730483443984,-500.0,0.00033979,4]
[341156753,1730483443994,-500.0,0.00033979,4]
[341156754,1730483444004,-14553.09,0.00033979,3]
[341156755,1730483444014,-1467.81,0.00033979,4]
[341156756,1730483444027,-987.71,0.00033979,4]
[341156757,1730483444037,-500.0,0.00033979,4]
[341156758,1730483444048,-500.0,0.0003398,4]
[341156759,1730483444057,-500.0,0.0003398,4]
[341156761,1730483444067,-500.0,0.0003398,4]
[341156762,1730483444077,-500.0,0.0003398,4]
[341156764,1730483444087,-500.0,0.0003398,4]
[341156765,1730483444096,-500.0,0.0003398,4]
[341156766,1730483444105,-500.0,0.0003398,4]
[341156767,1730483444117,-338.86761461,0.0003398,4]
[341156768,1730483444126,-500.0,0.0003398,4]
[341156769,1730483444137,-2393.13,0.0003398,4]
[341156770,1730483444148,-500.0,0.0003398,4]
[341156771,1730483444158,-500.0,0.0003398,4]
[341156772,1730483444167,-500.0,0.0003398,4]
[341156773,1730483444177,-500.0,0.0003398,4]
[341156774,1730483444188,-500.0,0.0003398,4]
[341156775,1730483444196,-11189.26,0.0003398,4]
[341156776,1730483444207,-500.0,0.0003398,4]
[341156777,1730483444217,-500.0,0.0003398,4]
[341156778,1730483444226,-500.0,0.0003398,4]
[341156779,1730483444236,-500.0,0.0003398,4]
[341156780,1730483444246,-500.0,0.0003398,4]
[341156781,1730483444256,-500.0,0.0003398,4]
[341156782,1730483444266,-500.0,0.0003398,4]
[341156783,1730483444275,-2485.18,0.0003398,4]
[341156784,1730483444284,-500.0,0.0003398,4]
[341156785,1730483444295,-1831.55,0.0003398,4]
[341156786,1730483444305,-896.7,0.0003398,4]
[341156787,1730483444315,-1604.13,0.0003398,4]
[341156788,1730483444326,-500.0,0.0003398,4]
[341156789,1730483444336,-500.0,0.0003398,4]
[341156790,1730483444347,-500.0,0.0003398,4]
[341156791,1730483444364,-926.64,0.0003398,4]
[341156792,1730483444376,-500.0,0.00034045,4]
[341156793,1730483444386,-500.0,0.00034045,4]
[341156794,1730483444395,-500.0,0.00034045,4]
[341156795,1730483444406,-500.0,0.00034045,4]
[341156797,1730483444416,-454.08949525,0.00034045,4]
[341156799,1730483444427,-500.0,0.00034045,4]
[341156801,1730483444437,-500.0,0.00034045,4]
[341156803,1730483444447,-500.0,0.00034045,4]
[341156805,1730483444459,-500.0,0.00034045,4]
[341156807,1730483444469,-500.0,0.00034045,4]
[341156809,1730483444480,-500.0,0.00034045,4]
[341156811,1730483444489,-264.75192586,0.00034045,4]
[341156813,1730483444500,-500.0,0.00034045,4]
[341156815,1730483444512,-500.0,0.00034045,4]
[341156817,1730483444522,-500.0,0.00034045,4]
[341156819,1730483444531,-500.0,0.00034045,4]
[341156821,1730483444541,-500.0,0.00034045,2]
[341156823,1730483444552,-500.0,0.00034045,4]
[341156824,1730483444561,-500.0,0.00034045,4]
[341156825,1730483444571,-1658.97,0.00034045,120]
[341156826,1730483444581,-1660.59,0.00034045,4]
[341156827,1730483444592,-500.0,0.00034045,4]
[341156828,1730483444602,-500.0,0.00034045,4]